bitfinex/quotes_BTCUSD_20250519
["timestamp","ask_amount","ask_price","bid_price","bid_amount"]
[1747679089328,0.60227442,105170.0,105160.0,0.002]
[1747679093609,0.92791005,105170.0,105160.0,0.002]
[1747679094636,0.60227442,105170.0,105160.0,0.002]
[1747679094925,0.92791005,105170.0,105160.0,0.002]
[1747679095124,0.92391005,105170.0,105160.0,0.001]
[1747679095327,0.92591005,105170.0,105160.0,0.002]
[1747679095748,0.20924417,105140.0,105130.0,0.36069769]
[1747679095948,0.27394417,105140.0,105130.0,0.36078881]
[1747679097016,0.27494417,105140.0,105130.0,0.36078881]
[1747679097213,0.27494417,105140.0,105130.0,0.36278881]
[1747679097514,0.27594417,105140.0,105130.0,0.36278881]
[1747679098116,0.27594417,105140.0,105130.0,0.48365181]
[1747679098416,0.21124417,105140.0,105130.0,0.71660449]
[1747679098621,0.21124417,105140.0,105130.0,0.72611634]
[1747679098988,0.2017335,105140.0,105130.0,0.68340449]
[1747679099207,0.19222256,105140.0,105130.0,0.68340449]
[1747679101868,0.19222256,105140.0,105130.0,0.69291625]
[1747679102080,0.2017335,105140.0,105130.0,0.73472773]
[1747679102283,0.23026632,105140.0,105130.0,0.73472773]
[1747679102490,0.23026632,105140.0,105130.0,0.7442395]
[1747679102693,0.02102161,105140.0,105130.0,0.75375089]
[1747679102899,0.22075529,105140.0,105130.0,0.78485089]
[1747679103266,0.02102161,105140.0,105130.0,0.78485089]
[1747679103467,0.03053264,105140.0,105130.0,0.78485089]
[1747679103866,0.2207552,105140.0,105130.0,0.78485089]
[1747679105126,0.2207552,105140.0,105130.0,0.78859808]
[1747679105477,0.002,105140.0,105130.0,0.88590748]
[1747679105732,0.01151031,105140.0,105130.0,0.88590748]
[1747679106036,0.03053138,105140.0,105130.0,0.88590748]
[1747679106472,0.23026542,105140.0,105130.0,0.71568669]
[1747679106673,0.23977654,105140.0,105130.0,0.71568669]
[1747679106816,0.23977654,105140.0,105130.0,0.72519817]
[1747679107026,0.23977654,105140.0,105130.0,0.72519753]
[1747679107229,0.04004277,105140.0,105130.0,0.75749753]
[1747679108204,0.002,105140.0,105130.0,1.08914693]
[1747679108565,0.002,105140.0,105130.0,1.11580878]
[1747679108974,0.002,105140.0,105130.0,1.10068843]
[1747679109219,0.002,105140.0,105130.0,1.11522928]
[1747679109426,0.07281619,105170.0,105160.0,0.56822218]
[1747679109629,0.2406928,105170.0,105160.0,1.66869873]
[1747679109801,0.23118484,105170.0,105160.0,1.66869873]
[1747679110040,0.23118484,105170.0,105160.0,1.57035273]
[1747679110213,0.24256829,105170.0,105160.0,0.76890869]
[1747679110416,0.24256829,105170.0,105160.0,0.77841791]
[1747679110658,0.27266829,105170.0,105160.0,0.34]
[1747679111625,0.27266829,105170.0,105160.0,0.5396956]
[1747679111851,0.27509289,105170.0,105160.0,1.03994564]
[1747679112047,0.04901619,105170.0,105160.0,1.05045423]
[1747679112324,0.2446928,105170.0,105160.0,0.84942715]
[1747679112573,0.05652451,105170.0,105160.0,0.86844469]
[1747679112884,0.06203292,105170.0,105160.0,0.85793601]
[1747679113101,0.25420121,105170.0,105160.0,0.88943601]
[1747679113713,0.25420121,105170.0,105160.0,0.85793601]
[1747679114270,0.25420121,105170.0,105160.0,0.82320101]
[1747679114437,0.25420121,105170.0,105160.0,0.78103001]
[1747679114655,0.24469316,105170.0,105160.0,0.77152115]
[1747679115471,0.05452487,105170.0,105160.0,0.78102983]
[1747679116002,0.24469316,105170.0,105160.0,0.80412115]
[1747679116241,0.24469316,105170.0,105160.0,0.77152115]
[1747679117346,0.24469316,105170.0,105160.0,0.7620122]
[1747679117549,0.2256767,105170.0,105160.0,0.6712582]
[1747679117761,0.28036829,105170.0,105160.0,0.6565022]
[1747679118723,0.28036829,105170.0,105160.0,0.66601133]
[1747679120150,0.28036829,105170.0,105160.0,0.67552037]
[1747679120852,0.28036829,105170.0,105160.0,0.33552037]
[1747679121084,0.28036829,105170.0,105160.0,0.23552037]
[1747679123245,0.28036829,105170.0,105160.0,0.22414177]
[1747679124183,0.28036829,105170.0,105160.0,0.21463273]
[1747679124423,0.24806829,105170.0,105160.0,0.22414177]
[1747679126300,0.24806829,105170.0,105160.0,0.21463273]
[1747679128842,0.27876829,105170.0,105160.0,0.21463273]
[1747679129614,0.22567652,105170.0,105160.0,0.23365063]
[1747679130383,0.25737652,105170.0,105160.0,0.23365063]
[1747679132724,0.03550769,105170.0,105160.0,0.34046871]
[1747679132915,0.03550769,105170.0,105160.0,0.41664731]
[1747679133373,0.03550769,105170.0,105160.0,0.38384731]
[1747679133910,0.03550769,105170.0,105160.0,0.35184731]
[1747679135191,0.04501565,105170.0,105160.0,0.35184731]
[1747679135391,0.04501556,105170.0,105160.0,0.35184731]
[1747679135891,0.04501556,105170.0,105160.0,0.35564018]
[1747679136073,0.10821547,105170.0,105160.0,0.35564018]
[1747679136457,0.04501547,105170.0,105160.0,0.35564018]
[1747679136800,0.10721547,105170.0,105160.0,0.35564018]
[1747679137227,0.07541547,105170.0,105160.0,0.35564018]
[1747679138046,0.08492334,105170.0,105160.0,0.35564018]
[1747679138738,0.08492334,105170.0,105160.0,0.34046871]
[1747679139378,0.05452334,105170.0,105160.0,0.34046871]
[1747679140020,0.03550769,105170.0,105160.0,0.34046871]
[1747679140420,0.04501556,105170.0,105160.0,0.34046871]
[1747679140616,0.03550769,105170.0,105160.0,0.34046871]
[1747679141021,0.09910769,105170.0,105160.0,0.34046871]
[1747679141397,0.10861556,105170.0,105160.0,0.34046871]
[1747679141627,0.09910769,105170.0,105160.0,0.34046871]
[1747679142222,0.10861556,105170.0,105160.0,0.34046871]
[1747679142550,0.04501556,105170.0,105160.0,0.36713584]
[1747679142756,0.0882,105170.0,105160.0,0.36713584]
[1747679142926,0.09770778,105170.0,105160.0,0.36713584]
[1747679143325,0.06710778,105170.0,105160.0,0.36713584]
[1747679143729,0.06710778,105170.0,105160.0,0.13776581]
[1747679143933,0.06710778,105170.0,105160.0,0.14727503]
[1747679144176,0.06710778,105170.0,105160.0,0.33746141]
[1747679144883,0.07661565,105170.0,105160.0,0.33746141]
[1747679145283,0.10841565,105170.0,105160.0,0.33746141]
[1747679145664,0.10841565,105170.0,105160.0,0.35264114]
[1747679145890,0.11792379,105170.0,105160.0,0.35264114]
[1747679146119,0.10841565,105170.0,105160.0,0.35264114]
[1747679146324,0.11792361,105170.0,105160.0,0.35264114]
[1747679146445,0.12743184,105170.0,105160.0,0.35264114]
[1747679146655,0.29858448,105170.0,105160.0,0.33721924]
[1747679146852,0.29858448,105170.0,105160.0,0.35322224]
[1747679147276,0.29858448,105170.0,105160.0,0.35322242]
[1747679147719,0.29858448,105170.0,105160.0,0.36273164]
[1747679148561,0.29858448,105170.0,105160.0,0.35893754]
[1747679148760,0.29858448,105170.0,105160.0,0.37795553]
[1747679148994,0.07661556,105170.0,105160.0,0.3874643]
[1747679149194,0.03550769,105170.0,105160.0,0.4847737]
[1747679149366,0.07741547,105170.0,105160.0,0.4847737]
[1747679149607,0.08692343,105170.0,105160.0,0.4847737]
[1747679149808,0.10781547,105170.0,105160.0,0.4847737]
[1747679150134,0.11732343,105170.0,105160.0,0.4847737]
[1747679151442,0.10781547,105170.0,105160.0,0.4847737]
[1747679151644,0.08692343,105170.0,105160.0,0.4847737]
[1747679152333,0.09643157,105170.0,105160.0,0.4847737]
[1747679152539,0.08692343,105170.0,105160.0,0.4847737]
[1747679152839,0.09643157,105170.0,105160.0,0.4847737]
[1747679153166,0.12883157,105170.0,105160.0,0.4847737]
[1747679153406,0.09643148,105170.0,105160.0,0.4847737]
[1747679153604,0.10593962,105170.0,105160.0,0.4847737]
[1747679153842,0.08692343,105170.0,105160.0,0.51145854]
[1747679154017,0.08692343,105170.0,105160.0,0.51525264]
[1747679155139,0.09643157,105170.0,105160.0,0.51525264]
[1747679155297,0.11852343,105170.0,105160.0,0.51525264]
[1747679155503,0.12803148,105170.0,105160.0,0.51525264]
[1747679158590,0.11852343,105170.0,105160.0,0.51525264]
[1747679160564,0.10901547,105170.0,105160.0,0.51525264]
[1747679160872,0.11852352,105170.0,105160.0,0.51525264]
[1747679162289,0.10901547,105170.0,105160.0,0.51525264]
[1747679162463,0.11852343,105170.0,105160.0,0.51525264]
[1747679163066,0.0584,105170.0,105160.0,0.85525264]
[1747679163270,0.0315,105180.0,105170.0,0.21869244]
[1747679163442,0.095218,105190.0,105180.0,0.20916477]
[1747679163643,0.095218,105190.0,105180.0,0.69086964]
[1747679163995,0.095218,105190.0,105180.0,0.67430364]
[1747679164195,0.0667,105190.0,105180.0,0.77161304]
[1747679164398,0.07634942,105190.0,105180.0,0.77161304]
[1747679164837,0.08585539,105190.0,105180.0,0.77161304]
[1747679165039,0.06684363,105190.0,105180.0,1.11161304]
[1747679165243,0.04314951,105190.0,105180.0,1.11161304]
[1747679165507,0.09115548,105190.0,105180.0,1.09880104]
[1747679165927,0.08464951,105190.0,105180.0,0.98766104]
[1747679166124,0.09415557,105190.0,105180.0,1.00284077]
[1747679166489,0.09115557,105190.0,105180.0,1.00184077]
[1747679166686,0.08415557,105190.0,105180.0,1.00084077]
[1747679166892,0.07564951,105190.0,105180.0,1.00084077]
[1747679167199,0.08915557,105190.0,105180.0,1.00084077]
[1747679168071,0.07014363,105190.0,105180.0,1.00084077]
[1747679168289,0.0796496,105190.0,105180.0,1.00084077]
[1747679168498,0.29830064,105190.0,105180.0,1.00084077]
[1747679168629,0.30780724,105190.0,105180.0,0.9913339]
[1747679168845,0.10816841,105190.0,105180.0,1.01034773]
[1747679169073,0.09866199,105190.0,105180.0,1.01034773]
[1747679169449,0.10816841,105190.0,105180.0,0.94970273]
[1747679169923,0.30780706,105190.0,105180.0,0.92583073]
[1747679170152,0.11767492,105190.0,105180.0,0.91503073]
[1747679170578,0.09866199,105190.0,105180.0,0.91503073]
[1747679170755,0.08915575,105190.0,105180.0,0.91503073]
[1747679170908,0.09866217,105190.0,105180.0,0.91503073]
[1747679171467,0.09866208,105190.0,105180.0,0.91503073]
[1747679172099,0.1081685,105190.0,105180.0,0.91503073]
[1747679172901,0.1081685,105190.0,105180.0,0.92639676]
[1747679173415,0.30780715,105190.0,105180.0,0.92639676]
[1747679173605,0.29830064,105190.0,105180.0,0.91688989]
[1747679173818,0.1081685,105190.0,105180.0,0.92639676]
[1747679174429,0.11767501,105190.0,105180.0,0.92639676]
[1747679175465,0.08915575,105190.0,105180.0,0.92639676]
[1747679175668,0.00714363,105190.0,105180.0,0.92639676]
[1747679175870,0.00714363,105190.0,105180.0,0.94093761]
[1747679176102,0.00714363,105190.0,105180.0,0.97283761]
[1747679176455,0.00314363,105190.0,105180.0,0.97283761]
[1747679176658,0.01164951,105190.0,105180.0,0.97283761]
[1747679176864,0.01464951,105190.0,105180.0,0.97283761]
[1747679177292,0.00514363,105190.0,105180.0,0.97283761]
[1747679177497,0.00514363,105190.0,105180.0,0.96147158]
[1747679177728,0.01464951,105190.0,105180.0,0.96147158]
[1747679177898,0.00514363,105190.0,105180.0,0.99347158]
[1747679178301,0.00514363,105190.0,105180.0,1.02010701]
[1747679178508,0.01464942,105190.0,105180.0,1.02010701]
[1747679178823,0.01464942,105190.0,105180.0,0.96147158]
[1747679179783,0.02415539,105190.0,105180.0,0.96147158]
[1747679179990,0.01464942,105190.0,105180.0,0.96147158]
[1747679180169,0.0241553,105190.0,105180.0,0.96147158]
[1747679180377,0.00514363,105190.0,105180.0,0.96147158]
[1747679180823,0.01464942,105190.0,105180.0,0.99207158]
[1747679181252,0.01464942,105190.0,105180.0,0.96147158]
[1747679181392,0.00514363,105190.0,105180.0,0.96147158]
[1747679181796,0.00514363,105190.0,105180.0,0.99207158]
[1747679182426,0.00514363,105190.0,105180.0,1.0186998]
[1747679183355,0.00514363,105190.0,105180.0,1.00352007]
[1747679185693,0.00514363,105190.0,105180.0,1.00552007]
[1747679186299,0.00214363,105190.0,105180.0,1.00552007]
[1747679186505,0.00314363,105190.0,105180.0,1.00552007]
[1747679187195,0.00314363,105190.0,105180.0,1.03402907]
[1747679189177,0.00314363,105190.0,105180.0,1.44222907]
[1747679192774,0.05,105200.0,105190.0,0.60379171]
[1747679192909,0.05009102,105200.0,105190.0,5.91018233]
[1747679193111,0.0323,105210.0,105200.0,0.57317093]
[1747679193325,0.03277861,105210.0,105200.0,5.46701833]
[1747679194342,0.06507861,105210.0,105200.0,3.48982533]
[1747679194571,0.06507861,105210.0,105200.0,3.46765733]
[1747679194771,0.06607861,105210.0,105200.0,3.46765733]
[1747679195573,0.06807861,105210.0,105200.0,3.46765733]
[1747679195777,0.06807861,105210.0,105200.0,3.43497633]
[1747679195988,0.06807861,105210.0,105200.0,3.45013487]
[1747679196282,0.07758268,105210.0,105200.0,3.45013487]
[1747679196447,0.06807861,105210.0,105200.0,3.45013487]
[1747679198290,0.00547861,105210.0,105200.0,3.45013487]
[1747679199280,0.064,105230.0,105220.0,0.55858852]
[1747679199520,0.06409098,105230.0,105220.0,3.86262992]
[1747679199900,0.06409098,105230.0,105220.0,3.89113092]
[1747679200079,0.06409098,105230.0,105220.0,3.94113092]
[1747679200671,0.00209098,105230.0,105220.0,3.92343092]
[1747679200914,0.00209098,105230.0,105220.0,3.90567177]
[1747679201447,0.00309098,105230.0,105220.0,3.93797177]
[1747679201979,0.03489098,105230.0,105220.0,3.90567177]
[1747679202588,0.03489098,105230.0,105220.0,3.91515114]
[1747679202791,0.03489098,105230.0,105220.0,3.92650279]
[1747679203394,0.03489098,105230.0,105220.0,4.06894279]
[1747679205821,0.03489098,105230.0,105220.0,4.07274968]
[1747679206535,0.03970127,105240.0,105220.0,4.07274968]
[1747679206536,0.07350055,105250.0,105230.0,0.53956222]
[1747679206767,0.064,105250.0,105240.0,2.80419255]
[1747679206973,0.08300101,105250.0,105240.0,2.80181737]
[1747679207921,0.08500101,105250.0,105240.0,2.80181737]
[1747679208244,0.07550037,105250.0,105240.0,2.80181737]
[1747679208445,0.08500092,105250.0,105240.0,2.80181737]
[1747679208885,0.09750165,105250.0,105240.0,2.80181737]
[1747679209086,0.09750165,105250.0,105240.0,2.81315641]
[1747679209741,0.10700247,105250.0,105240.0,2.81315641]
[1747679209965,0.10700247,105250.0,105240.0,2.18803741]
[1747679210164,0.10700247,105250.0,105240.0,2.33047741]
[1747679210367,0.10700247,105250.0,105240.0,2.33571669]
[1747679211750,0.29702622,105250.0,105240.0,1.97191352]
[1747679211949,0.27802557,105250.0,105240.0,0.01657832]
[1747679212971,0.27802557,105250.0,105230.0,0.38189453]
[1747679212972,0.1900418,105240.0,105230.0,0.38189453]
[1747679213138,0.2504418,105240.0,105230.0,0.62508264]
[1747679213604,0.2504418,105240.0,105230.0,0.30761764]
[1747679214004,0.2504418,105240.0,105230.0,0.35761764]
[1747679214308,0.2504418,105240.0,105230.0,0.31147127]
[1747679214464,0.2514418,105240.0,105230.0,0.31147127]
[1747679214848,0.26094389,105240.0,105230.0,0.31147127]
[1747679216004,0.26094389,105240.0,105230.0,0.11190863]
[1747679216213,0.26094389,105240.0,105230.0,0.00385363]
[1747679220534,1.02285371,105240.0,105230.0,0.00385363]
[1747679220757,0.69825329,105240.0,105230.0,0.00385363]
[1747679221122,0.90061329,105240.0,105230.0,0.00385363]
[1747679221348,0.89961329,105240.0,105230.0,0.00385363]
[1747679221717,0.90461329,105240.0,105230.0,0.00385363]
[1747679224434,0.46730389,105240.0,105230.0,0.00385363]
[1747679231260,0.56461329,105240.0,105230.0,0.00385363]
[1747679231468,0.88921371,105240.0,105230.0,0.00385363]
[1747679231878,0.56461329,105240.0,105230.0,0.00385363]
[1747679238665,0.88921371,105240.0,105230.0,0.00385363]
[1747679238826,0.56461329,105240.0,105230.0,0.00385363]
[1747679241200,0.88921371,105240.0,105230.0,0.00385363]
[1747679241691,1.56835498,105240.0,105230.0,0.00385363]
[1747679241919,0.20910494,105210.0,105200.0,0.002]
[1747679242127,0.89543476,105210.0,105200.0,0.00209098]
[1747679242540,1.23543476,105210.0,105200.0,0.00209098]
[1747679242753,1.57457603,105210.0,105200.0,0.00209098]
[1747679242958,1.58457603,105210.0,105200.0,0.00209098]
[1747679243383,1.58757603,105210.0,105200.0,0.00209098]
[1747679243585,1.25997561,105210.0,105200.0,0.00209098]
[1747679243790,1.26397561,105210.0,105200.0,0.00309098]
[1747679243999,1.26897561,105210.0,105200.0,0.00409098]
[1747679244410,1.26497561,105210.0,105200.0,0.00309098]
[1747679244728,1.27097561,105210.0,105200.0,0.00409098]
[1747679245283,1.41349561,105210.0,105200.0,0.00409098]
[1747679245849,1.42745149,105210.0,105200.0,0.00409098]
[1747679246679,1.75205191,105210.0,105200.0,0.00409098]
[1747679246889,0.59644513,105190.0,105180.0,0.002]
[1747679247094,0.57111411,105190.0,105180.0,0.00247861]
[1747679248066,0.57311411,105190.0,105180.0,0.00247861]
[1747679248546,0.89771453,105190.0,105180.0,0.00247861]
[1747679248931,0.91225538,105190.0,105180.0,0.00247861]
[1747679256169,1.25025538,105190.0,105180.0,0.00247861]
[1747679256364,1.26325538,105190.0,105180.0,0.00347861]
[1747679256636,1.27325538,105190.0,105180.0,0.00347861]
[1747679256817,1.27625538,105190.0,105180.0,0.00447861]
[1747679257013,1.27325538,105190.0,105180.0,0.00347861]
[1747679257216,1.27025538,105190.0,105180.0,0.00347861]
[1747679257423,1.27325538,105190.0,105180.0,0.00347861]
[1747679257588,1.36756478,105190.0,105180.0,0.00247861]
[1747679258042,0.1997335,105140.0,105130.0,0.34]
[1747679258216,0.1997335,105140.0,105130.0,0.64550902]
[1747679258810,0.1997335,105140.0,105130.0,0.83574967]
[1747679259428,0.2007335,105140.0,105130.0,0.84374967]
[1747679259605,0.2017335,105140.0,105130.0,0.8532617]
[1747679259807,0.21124435,105140.0,105130.0,0.8532617]
[1747679260019,0.2017335,105140.0,105130.0,0.8532617]
[1747679260220,0.19222256,105140.0,105130.0,0.65350902]
[1747679260656,0.19222256,105140.0,105130.0,0.34809102]
[1747679260861,0.19400781,105140.0,105130.0,0.34809102]
[1747679261199,0.19400781,105140.0,105130.0,0.00809102]
[1747679261200,0.35301721,105140.0,105130.0,0.00809102]
[1747679261397,0.35123196,105140.0,105130.0,0.00809102]
[1747679261641,0.55267196,105140.0,105130.0,0.00809102]
[1747679262073,0.55167196,105140.0,105130.0,0.00409102]
[1747679262252,0.55167196,105140.0,105130.0,0.00209102]
[1747679262549,0.55167196,105140.0,105130.0,0.00309102]
[1747679262760,0.55067196,105140.0,105130.0,0.00109102]
[1747679263099,0.55067196,105140.0,105130.0,0.00209102]
[1747679263313,0.87527238,105140.0,105130.0,0.00209102]
[1747679263516,0.55067196,105140.0,105130.0,0.00209102]
[1747679263711,0.56512202,105140.0,105130.0,0.00209102]
[1747679263956,0.57966287,105140.0,105130.0,0.00209102]
[1747679264772,0.36368202,105140.0,105130.0,0.00209102]
[1747679265088,0.56512202,105140.0,105130.0,0.00209102]
[1747679265445,0.56512202,105140.0,105130.0,9.102e-05]
[1747679265768,0.56812202,105140.0,105130.0,9.102e-05]
[1747679266130,0.56712202,105140.0,105130.0,9.102e-05]
[1747679266334,0.57212202,105140.0,105130.0,0.00109102]
[1747679266609,0.57712202,105140.0,105130.0,0.00209102]
[1747679266821,0.56267196,105140.0,105130.0,0.00209102]
[1747679267410,0.21879592,105120.0,105110.0,0.0342]
[1747679267628,0.21879592,105120.0,105110.0,0.34832576]
[1747679267892,0.21879592,105120.0,105110.0,0.34832594]
[1747679268071,0.2092838,105120.0,105110.0,0.3578396]
[1747679268399,0.19977141,105120.0,105110.0,0.2436456]
[1747679268612,0.19977141,105120.0,105110.0,0.4254666]
[1747679268613,0.19025875,105120.0,105110.0,0.4254666]
[1747679268828,0.19025875,105120.0,105110.0,0.43498017]
[1747679269003,0.19225875,105120.0,105110.0,0.4254666]
[1747679269267,0.19325875,105120.0,105110.0,0.4254666]
[1747679271220,0.19325875,105120.0,105110.0,0.43498017]
[1747679271952,0.19325875,105120.0,105110.0,0.78449365]
[1747679272175,0.19325875,105120.0,105110.0,0.77498017]
[1747679272396,0.19325875,105120.0,105110.0,0.7654666]
[1747679273523,0.20277141,105120.0,105110.0,0.77497999]
[1747679273697,0.22179664,105120.0,105110.0,0.78449328]
[1747679273907,0.22179664,105120.0,105110.0,0.77497999]
[1747679274108,0.22179664,105120.0,105110.0,0.77498008]
[1747679276181,0.22179664,105120.0,105110.0,0.78449347]
[1747679276380,0.22179664,105120.0,105110.0,0.77498008]
[1747679277001,0.22179664,105120.0,105110.0,0.78449347]
[1747679277814,0.22179664,105120.0,105110.0,0.77498008]
[1747679278238,0.21228425,105120.0,105110.0,0.77498008]
[1747679279017,0.20277159,105120.0,105110.0,0.67066794]
[1747679279400,0.20277159,105120.0,105110.0,0.6801816]
[1747679279818,0.20277159,105120.0,105110.0,0.70899499]
[1747679280158,0.20277159,105120.0,105110.0,0.72389499]
[1747679280363,0.22179637,105120.0,105110.0,0.74292148]
[1747679280592,0.23130921,105120.0,105110.0,0.73340828]
[1747679280815,0.24082214,105120.0,105110.0,0.73340828]
[1747679281025,0.23130984,105120.0,105110.0,0.73340828]
[1747679281654,0.23130984,105120.0,105110.0,0.7170881]
[1747679282085,0.04105109,105120.0,105110.0,0.7319881]
[1747679282315,0.23130984,105120.0,105110.0,0.7433307]
[1747679282521,0.23130984,105120.0,105110.0,0.7528439]
[1747679282723,0.22179691,105120.0,105110.0,0.7528439]
[1747679282997,0.23130984,105120.0,105110.0,0.7433307]
[1747679283120,0.23130984,105120.0,105110.0,0.7091307]
[1747679283338,0.22179727,105120.0,105110.0,0.69961759]
[1747679283560,0.22179727,105120.0,105110.0,0.70913107]
[1747679284590,0.21228452,105120.0,105110.0,0.70913107]
[1747679284949,0.21228452,105120.0,105110.0,0.69961759]
[1747679285151,0.21228452,105120.0,105110.0,0.70913107]
[1747679285561,0.21228452,105120.0,105110.0,0.69961759]
[1747679286067,0.20277168,105120.0,105110.0,0.69961759]
[1747679286902,0.20277168,105120.0,105110.0,0.63531606]
[1747679287105,0.20277168,105120.0,105110.0,0.35138039]
[1747679287718,0.20277168,105120.0,105110.0,0.35138057]
[1747679287921,0.20277168,105120.0,105110.0,0.37040762]
[1747679288167,0.20291562,105120.0,105110.0,0.36089414]
[1747679288511,0.20291562,105120.0,105110.0,0.34186691]
[1747679288730,0.22460269,105120.0,105110.0,0.0113426]
[1747679288930,0.25510269,105120.0,105110.0,0.0113426]
[1747679289351,0.25495875,105120.0,105110.0,0.01119866]
[1747679289557,0.25495875,105120.0,105110.0,0.15532566]
[1747679289869,0.25495875,105120.0,105110.0,0.01119866]
[1747679290212,0.25495875,105120.0,105110.0,0.16482666]
[1747679292410,0.25495875,105120.0,105110.0,0.14520466]
[1747679293091,0.25495875,105120.0,105110.0,0.18318266]
[1747679293296,0.25495875,105120.0,105110.0,0.01119866]
[1747679293676,0.25495875,105120.0,105110.0,0.20147551]
[1747679294089,0.25495875,105120.0,105110.0,0.32251435]
[1747679294473,0.25495875,105120.0,105110.0,0.16808866]
[1747679294680,0.25495875,105120.0,105110.0,0.21098926]
[1747679295751,0.25495875,105120.0,105110.0,0.37866126]
[1747679298153,0.0647,105120.0,105110.0,0.72817474]
[1747679298392,0.003,105120.0,105110.0,0.89590682]
[1747679298543,0.0125123,105120.0,105110.0,0.89985348]
[1747679298744,0.0125123,105120.0,105110.0,0.86565348]
[1747679299585,0.003,105120.0,105110.0,0.86565348]
[1747679299792,0.01251221,105120.0,105110.0,0.75883088]
[1747679299993,0.09453726,105120.0,105110.0,0.77785747]
[1747679300195,0.09453717,105120.0,105110.0,0.77785747]
[1747679300691,0.10404992,105120.0,105110.0,0.77785747]
[1747679300889,0.0220246,105120.0,105110.0,0.77785747]
[1747679301301,0.03153717,105120.0,105110.0,0.77785747]
[1747679301701,0.03153717,105120.0,105110.0,0.76271215]
[1747679301702,0.04104992,105120.0,105110.0,0.76271215]
[1747679301928,0.03153717,105120.0,105110.0,0.76271215]
[1747679302506,0.04104992,105120.0,105110.0,0.76271215]
[1747679303009,0.10264992,105120.0,105110.0,0.76271215]
[1747679303425,0.10264983,105120.0,105110.0,0.76271215]
[1747679304168,0.30242133,105120.0,105110.0,0.75319895]
[1747679304347,0.29290912,105120.0,105110.0,0.76271215]
[1747679304584,0.08362496,105120.0,105110.0,0.76271215]
[1747679306731,0.09313771,105120.0,105110.0,0.76271215]
[1747679306932,0.08362496,105120.0,105110.0,0.76271215]
[1747679307916,0.09313771,105120.0,105110.0,0.76271215]
[1747679308235,0.08362496,105120.0,105110.0,0.77790129]
[1747679308434,0.09313771,105120.0,105110.0,0.77790129]
[1747679309636,0.08362496,105120.0,105110.0,0.7588747]
[1747679309847,0.08362496,105120.0,105110.0,0.7683879]
[1747679310489,0.27566932,105120.0,105110.0,0.52814262]
[1747679310694,0.27388407,105120.0,105110.0,0.69373631]
[1747679311081,0.27388407,105120.0,105110.0,0.66702683]
[1747679311485,0.2643715,105120.0,105110.0,0.35518914]
[1747679311665,0.2643715,105120.0,105110.0,0.48528814]
[1747679311874,0.2643715,105120.0,105110.0,0.01518914]
[1747679313378,0.2643715,105120.0,105110.0,0.35518914]
[1747679313985,0.2643715,105120.0,105110.0,0.34]
[1747679316356,0.27300426,105110.0,105100.0,0.57591561]
[1747679316472,0.27300426,105110.0,105100.0,0.87772973]
[1747679317309,0.09224071,105110.0,105100.0,0.88724384]
[1747679317517,0.0827265,105110.0,105100.0,0.91493947]
[1747679317853,0.09224016,105110.0,105100.0,0.91593947]
[1747679318707,0.0827265,105110.0,105100.0,0.91593947]
[1747679318918,0.09224016,105110.0,105100.0,0.91593947]
[1747679319121,0.07331284,105120.0,105100.0,0.89691044]
[1747679319419,0.00951221,105120.0,105110.0,2.48355228]
[1747679319619,0.27306444,105130.0,105120.0,0.20928434]
[1747679319755,0.27306444,105130.0,105120.0,0.63180882]
[1747679319956,0.27306444,105130.0,105120.0,0.65083351]
[1747679320182,0.07331148,105130.0,105120.0,0.98132121]
[1747679320399,0.22828713,105130.0,105120.0,0.98132121]
[1747679320602,0.10184639,105130.0,105120.0,0.98132121]
[1747679320844,0.02853436,105130.0,105120.0,0.99083351]
[1747679321043,0.27304363,105140.0,105130.0,0.54926426]
[1747679321218,0.28255457,105140.0,105130.0,2.06140626]
[1747679321446,0.27304417,105140.0,105130.0,1.49567426]
[1747679321652,0.27304417,105140.0,105130.0,0.91297126]
[1747679321784,0.27304417,105140.0,105130.0,0.34]
[1747679322159,0.25402256,105140.0,105130.0,0.34]
[1747679322483,0.25902256,105140.0,105130.0,0.654028]
[1747679322935,0.26402256,105140.0,105130.0,0.655028]
[1747679323102,0.26402256,105140.0,105130.0,0.342]
[1747679323908,0.26402256,105140.0,105130.0,0.002]
[1747679325137,0.26402256,105140.0,105130.0,0.82036465]
[1747679325470,0.0928217,105140.0,105130.0,0.85841168]
[1747679325839,0.29255475,105140.0,105130.0,0.84890029]
[1747679326263,0.11184322,105140.0,105130.0,0.86792335]
[1747679326467,0.3115769,105140.0,105130.0,0.86792335]
[1747679326691,0.3115769,105140.0,105130.0,0.83938862]
[1747679326916,0.30206641,105140.0,105130.0,0.84890038]
[1747679327091,0.30206641,105140.0,105130.0,0.85841196]
[1747679328591,0.29255565,105140.0,105130.0,0.85841196]
[1747679329158,0.29255565,105140.0,105130.0,0.84890038]
[1747679329513,0.28304471,105140.0,105130.0,0.55635338]
[1747679329730,0.28304471,105140.0,105130.0,0.44114138]
[1747679329970,0.27353368,105140.0,105130.0,0.41567162]
[1747679330201,0.27353368,105140.0,105130.0,0.002]
[1747679330202,0.26402256,105140.0,105130.0,0.002]
[1747679330627,0.36133196,105140.0,105130.0,0.002]
[1747679331560,0.26402256,105140.0,105130.0,0.002]
[1747679338123,0.36133196,105140.0,105130.0,0.002]
[1747679339962,0.56201196,105140.0,105130.0,0.002]
[1747679340497,0.36133196,105140.0,105130.0,0.002]
[1747679340676,0.56201196,105140.0,105130.0,0.002]
[1747679341019,0.26402256,105140.0,105130.0,0.002]
[1747679341667,0.26402256,105140.0,105130.0,0.20175268]
[1747679342481,0.26402256,105140.0,105120.0,0.0380501]
[1747679342700,0.26402256,105140.0,105120.0,0.57068592]
[1747679342911,0.26402256,105140.0,105130.0,1.46064668]
[1747679343120,0.26402256,105140.0,105120.0,0.53977069]
[1747679343121,0.00951185,105130.0,105120.0,0.53977069]
[1747679343326,0.26593775,105130.0,105120.0,0.34]
[1747679343535,0.26417168,105120.0,105110.0,0.22449312]
[1747679343742,0.26417168,105120.0,105110.0,0.66972499]
[1747679343933,0.26417168,105120.0,105110.0,0.67923883]
[1747679344133,0.26417168,105120.0,105110.0,0.68875258]
[1747679344362,0.26417168,105120.0,105110.0,0.69826624]
[1747679344893,0.19977168,105120.0,105110.0,0.7172931]
[1747679345138,0.21128434,105120.0,105110.0,0.70877981]
[1747679345343,0.27188434,105120.0,105110.0,0.69926624]
[1747679346195,0.27188434,105120.0,105110.0,0.6840771]
[1747679346634,0.27188434,105120.0,105110.0,0.69359067]
[1747679346819,0.27488434,105120.0,105110.0,0.69459067]
[1747679348649,0.0335378,105120.0,105110.0,0.70410332]
[1747679348831,0.01451212,105120.0,105110.0,0.70410332]
[1747679349043,0.03353681,105120.0,105110.0,0.70410332]
[1747679349343,0.02402451,105120.0,105110.0,0.82071272]
[1747679349542,0.01451212,105120.0,105110.0,0.82071272]
[1747679349759,0.02402442,105120.0,105110.0,0.84699559]
[1747679351132,0.02402442,105120.0,105110.0,0.83209559]
[1747679351655,0.005,105120.0,105110.0,0.83209559]
[1747679351910,0.0145123,105120.0,105110.0,0.84699559]
[1747679352109,0.0145123,105120.0,105110.0,0.83209559]